bitfinex/quotes_SOLUSD_20250406
["timestamp","ask_amount","ask_price","bid_price","bid_amount"]
[1743950719120,93.58139976,114.84,114.83,0.063]
[1743950719325,87.48599976,114.84,114.83,0.063]
[1743950719834,87.38599976,114.84,114.83,0.063]
[1743950721723,93.48139976,114.84,114.83,0.063]
[1743950721926,93.7657229,114.84,114.83,0.063]
[1743950723232,87.6703229,114.84,114.83,0.063]
[1743950724928,93.7657229,114.84,114.83,0.063]
[1743950725226,18.64964886,114.83,114.78,10.7257]
[1743950725395,13.76727018,114.8,114.78,10.7257]
[1743950726029,13.76727018,114.8,114.78,6.0983]
[1743950726205,13.76727018,114.8,114.77,21.3465]
[1743950728337,13.76727018,114.79,114.77,6.0991]
[1743950729118,13.76727018,114.79,114.76,19.333]
[1743950729615,13.76727018,114.79,114.76,6.0994]
[1743950730025,13.76727018,114.78,114.76,6.0994]
[1743950730320,13.76727018,114.78,114.75,10.6043]
[1743950730650,13.76727018,114.77,114.75,6.1629]
[1743950732036,13.76727018,114.77,114.75,0.063]
[1743950732238,6.0976,114.8,114.75,0.063]
[1743950732413,13.76727018,114.77,114.75,0.063]
[1743950732612,18.64964886,114.81,114.75,0.063]
[1743950732816,32.41691904,114.81,114.76,13.76727018]
[1743950733009,13.76727018,114.8,114.75,13.83027018]
[1743950733845,13.76727018,114.81,114.76,13.76727018]
[1743950734053,13.76727018,114.81,114.77,21.3469]
[1743950734346,13.76727018,114.82,114.77,39.80567018]
[1743950735020,13.76727018,114.81,114.77,39.80567018]
[1743950735344,13.76727018,114.82,114.77,39.80567018]
[1743950735937,13.76727018,114.81,114.77,39.80567018]
[1743950736134,13.76727018,114.81,114.77,26.0384]
[1743950736740,13.76727018,114.8,114.77,26.0384]
[1743950738045,13.76727018,114.81,114.77,26.0384]
[1743950738646,13.76727018,114.8,114.77,10.7906]
[1743950740119,13.76727018,114.79,114.77,10.7906]
[1743950740819,13.76727018,114.79,114.77,6.0991]
[1743950741345,13.76727018,114.78,114.77,6.0991]
[1743950742424,13.76727018,114.78,114.76,6.1626]
[1743950742842,13.76727018,114.79,114.76,6.1626]
[1743950743439,18.64964886,114.81,114.76,6.1626]
[1743950743638,13.76727018,114.79,114.76,6.1626]
[1743950748154,0.03,114.83,114.76,6.1626]
[1743950748327,18.67964886,114.83,114.77,0.14216157]
[1743950748526,13.76727018,114.81,114.77,0.14216157]
[1743950749355,13.76727018,114.81,114.78,6.0986]
[1743950750049,13.76727018,114.8,114.78,6.0986]
[1743950751335,13.76727018,114.81,114.78,6.0986]
[1743950752765,0.03,114.83,114.79,18.76593175]
[1743950753542,0.03,114.83,114.8,6.0975]
[1743950754270,13.79727018,114.83,114.8,6.0975]
[1743950756044,0.03,114.83,114.8,6.0975]
[1743950756229,0.03,114.83,114.8,21.3414]
[1743950758238,13.79727018,114.83,114.8,21.3414]
[1743950759550,0.03,114.83,114.8,21.3414]
[1743950759861,13.79727018,114.83,114.8,21.3414]
[1743950762771,0.03,114.83,114.8,21.3414]
[1743950763071,13.79727018,114.83,114.8,21.3414]
[1743950764568,0.03,114.83,114.8,6.0975]
[1743950764958,13.79727018,114.83,114.8,6.0975]
[1743950770670,0.03,114.83,114.8,35.10867018]
[1743950770875,0.03,114.83,114.81,13.90943175]
[1743950771174,0.03,114.83,114.81,0.14216157]
[1743950772475,0.03,114.83,114.82,6.0964]
[1743950773568,0.03,114.83,114.82,33.01853175]
[1743950774076,0.03,114.88,114.83,0.14216157]
[1743950774283,0.03,114.88,114.83,13.90943175]
[1743950774575,13.79727018,114.88,114.85,6.0949]
[1743950774952,13.76727018,114.87,114.85,6.0949]
[1743950778658,0.03,114.88,114.86,13.90943175]
[1743950778881,0.03,114.88,114.86,0.14216157]
[1743950779562,0.03,114.88,114.87,6.0938]
[1743950780977,0.03,114.88,114.86,6.0941]
[1743950781154,13.79727018,114.88,114.86,6.0941]
[1743950781557,13.76727018,114.87,114.85,14.6147]
[1743950781778,13.76727018,114.86,114.85,14.6147]
[1743950781968,13.76727018,114.87,114.85,14.6147]
[1743950782753,13.76727018,114.86,114.82,13.0127]
[1743950782958,13.76727018,114.84,114.82,13.0127]
[1743950783554,13.76727018,114.84,114.82,19.1089]
[1743950783879,13.76727018,114.85,114.82,19.1089]
[1743950784089,13.76727018,114.86,114.82,19.1089]
[1743950784255,13.76727018,114.86,114.82,34.3501]
[1743950785458,13.76727018,114.86,114.82,42.8501]
[1743950785970,13.76727018,114.85,114.82,42.8501]
[1743950786273,13.76727018,114.86,114.82,42.8501]
[1743950787677,13.76727018,114.87,114.83,0.14216157]
[1743950788062,13.76727018,114.87,114.84,6.0954]
[1743950788979,13.76727018,114.86,114.84,6.0954]
[1743950789160,13.76727018,114.87,114.84,6.0954]
[1743950789363,13.76727018,114.86,114.84,6.0954]
[1743950789658,13.79727018,114.87,114.84,6.0954]
[1743950791680,0.03,114.87,114.84,6.0954]
[1743950791862,13.79727018,114.87,114.84,6.0954]
[1743950793580,0.03,114.87,114.85,0.14216157]
[1743950793880,0.03,114.87,114.85,4.75306157]
[1743950795789,0.03,114.87,114.86,6.0943]
[1743950797688,13.79727018,114.87,114.86,6.0943]
[1743950798189,0.03,114.87,114.86,6.0943]
[1743950804775,0.03,114.87,114.86,6.23646157]
[1743950805478,0.03,114.87,114.86,18.32936157]
[1743950807195,0.03,114.87,114.86,26.82936157]
[1743950810695,0.03,114.87,114.86,18.32936157]
[1743950810885,0.03,114.87,114.86,26.82936157]
[1743950811898,0.03,114.87,114.86,40.59663175]
[1743950812207,0.0001,114.88,114.86,59.53060375]
[1743950812414,0.0001,114.88,114.87,14.19375489]
[1743950812977,0.0001,114.88,114.87,32.84340375]
[1743950813192,0.03,114.93,114.87,32.84340375]
[1743950813193,0.03,114.93,114.9,12.2058]
[1743950813392,0.03,114.93,114.91,27.49255489]
[1743950813600,0.03,114.93,114.91,13.44096157]
[1743950814408,0.03,114.99,114.97,0.14216157]
[1743950814613,0.03,114.99,114.98,22.69375489]
[1743950814920,40.91383803,115.0,114.99,0.14216157]
[1743950815082,54.68110821,115.0,114.97,6.0885]
[1743950815288,40.91383803,115.0,114.97,6.0885]
[1743950815487,54.68110821,115.0,114.97,6.0885]
[1743950815705,40.91383803,115.0,114.98,0.14216157]
[1743950816007,40.91383803,115.0,114.99,8.62216157]
[1743950816210,3.803e-05,115.0,114.99,41.32340375]
[1743950816520,3.803e-05,115.0,114.99,62.12023367]
[1743950816723,3.803e-05,115.0,114.99,29.70331463]
[1743950816885,3.803e-05,115.0,114.99,43.47058481]
[1743950817088,3.803e-05,115.0,114.99,35.79071463]
[1743950817287,3.803e-05,115.0,114.99,49.55798481]
[1743950818530,3.803e-05,115.0,114.99,28.31256196]
[1743950818828,3.803e-05,115.0,114.99,36.79256196]
[1743950819121,13.76727018,115.01,114.99,8.48]
[1743950819795,26.0,115.04,114.99,8.48]
[1743950820120,13.76727018,115.02,114.99,8.48]
[1743950820323,26.0,115.03,114.99,14.5673]
[1743950820694,39.76727018,115.03,115.0,0.14216157]
[1743950820882,26.0,115.03,115.0,0.14216157]
[1743950821099,39.76727018,115.04,115.0,0.14216157]
[1743950821296,26.0,115.04,115.01,6.0864]
[1743950821791,21.43132172,115.06,115.02,0.14216157]
[1743950821990,21.43132172,115.06,115.03,8.48]
[1743950823799,21.43132172,115.05,115.03,8.48]
[1743950824834,6.0834,115.07,115.03,8.48]
[1743950825004,21.43132172,115.06,115.03,8.48]
[1743950825924,21.43132172,115.06,115.03,14.5652]
[1743950828000,21.43132172,115.06,115.03,8.48]
[1743950828926,0.03,115.05,115.03,8.48]
[1743950830501,0.03,115.05,115.03,14.5653]
[1743950832918,0.03,115.05,115.04,0.14216157]
[1743950834217,0.03,115.05,115.04,6.22696157]
[1743950835102,47.43132172,115.07,115.04,6.22696157]
[1743950835802,21.43132172,115.07,115.04,6.22696157]
[1743950836610,6.0822,115.09,115.04,6.22696157]
[1743950836814,4.4151,115.1,115.04,27.65828329]
[1743950837009,21.43132172,115.1,115.06,0.14216157]
[1743950837214,10.6766,115.13,115.07,8.48]
[1743950837215,18.64964886,115.12,115.07,8.48]
[1743950837411,21.43132172,115.1,115.07,8.48]
[1743950838031,21.43132172,115.09,115.07,8.48]
[1743950838218,21.43132172,115.1,115.07,14.5628]
[1743950838426,18.64964886,115.12,115.07,14.5628]
[1743950838624,21.43132172,115.11,115.07,14.5628]
[1743950839412,18.64964886,115.12,115.07,14.5628]
[1743950839612,21.43132172,115.11,115.07,14.5628]
[1743950839808,21.43132172,115.08,115.07,8.48]
[1743950840125,21.43132172,115.08,115.05,0.14216157]
[1743950840325,47.43132172,115.09,115.05,0.14216157]
[1743950840523,6.0807,115.12,115.05,0.42648471]
[1743950840709,4.5963,115.13,115.08,0.14216157]
[1743950840915,26.0,115.11,115.08,8.46]
[1743950841116,21.43132172,115.13,115.09,0.14216157]
[1743950841532,21.43132172,115.12,115.09,0.14216157]
[1743950842113,21.43132172,115.12,115.08,8.46]
[1743950842114,0.03,115.11,115.08,14.5423]
[1743950843114,0.03,115.11,115.09,0.14216157]
[1743950843315,0.03,115.11,115.09,21.57348329]
[1743950844325,0.03,115.11,115.1,21.57348329]
[1743950844529,4.5963,115.16,115.11,0.42648471]
[1743950844530,21.43132172,115.16,115.11,0.42648471]
[1743950844834,21.43132172,115.16,115.13,0.14216157]
[1743950845221,21.43132172,115.16,115.13,6.22166157]
[1743950846123,21.43132172,115.16,115.12,14.5403]
[1743950846435,21.43132172,115.14,115.12,8.46]
[1743950847427,26.0,115.15,115.12,8.46]
[1743950847627,47.43132172,115.15,115.12,14.5405]
[1743950848034,26.0,115.15,115.12,14.5405]
[1743950848216,47.43132172,115.15,115.12,14.5405]
[1743950848729,21.43132172,115.16,115.12,14.5405]
[1743950849416,18.64964886,115.18,115.12,28.22760537]
[1743950849738,13.68710537,115.18,115.13,13.82926694]
[1743950850930,13.68710537,115.18,115.14,6.0795]
[1743950851328,21.38111776,115.18,115.14,6.0795]
[1743950851830,21.38111776,115.17,115.14,6.0795]
[1743950853137,21.38111776,115.17,115.13,24.19996157]
[1743950853642,6.0771,115.19,115.13,45.58107933]
[1743950853809,21.38111776,115.18,115.13,45.58107933]
[1743950855844,6.0771,115.19,115.13,45.58107933]
[1743950856042,21.38111776,115.18,115.13,45.58107933]
[1743950858044,21.38111776,115.18,115.13,60.78127933]
[1743950858219,21.38111776,115.17,115.14,3.18449207]
[1743950858419,6.077,115.19,115.14,3.18449207]
[1743950858619,21.38111776,115.18,115.15,0.14216157]
[1743950858944,24.72574886,115.21,115.15,0.14216157]
[1743950859342,21.38111776,115.19,115.15,0.14216157]
[1743950859531,21.38111776,115.19,115.16,6.0784]
[1743950860440,21.38111776,115.18,115.16,6.0784]
[1743950860638,21.38111776,115.18,115.14,6.0795]
[1743950860845,21.38111776,115.15,115.11,8.46]
[1743950861039,21.38111776,115.15,115.12,8.46]
[1743950861345,26.0,115.17,115.13,3.19196018]
[1743950861537,21.38111776,115.15,115.13,3.19196018]
[1743950861735,7.0922973,115.24,115.17,26.0]
[1743950861935,21.38111776,115.22,115.16,26.06211776]
[1743950862145,4.8904,115.24,115.14,3.19196018]
[1743950862146,21.38111776,115.17,115.14,3.19196018]
[1743950862328,21.38111776,115.16,115.14,3.19196018]
[1743950862923,21.38111776,115.16,115.13,10.7607]
[1743950863766,21.38111776,115.18,115.14,0.14216157]
[1743950864265,21.38111776,115.18,115.15,3.19116306]
[1743950864626,21.38111776,115.17,115.15,3.19116306]
[1743950865132,12.7899,115.23,115.16,0.14216157]
[1743950865338,21.38111776,115.2,115.17,6.0779]
[1743950865640,21.38111776,115.19,115.17,6.0779]
[1743950866254,18.64964886,115.22,115.17,6.0779]
[1743950866454,21.38111776,115.19,115.17,6.0779]
[1743950867345,21.38111776,115.19,115.16,0.14216157]
[1743950867549,18.64964886,115.22,115.16,0.14216157]
[1743950867744,21.38111776,115.19,115.16,0.14216157]
[1743950868250,21.38111776,115.17,115.14,6.0793]
[1743950868549,21.38111776,115.16,115.14,6.0793]
[1743950869050,18.64964886,115.18,115.14,6.0793]
[1743950869244,21.38111776,115.16,115.14,6.0793]
[1743950869448,21.38111776,115.16,115.13,0.14216157]
[1743950869628,21.38111776,115.18,115.13,21.52327933]
[1743950869831,8.46,115.19,115.13,21.52327933]
[1743950870031,21.38111776,115.18,115.14,3.19700517]
[1743950870853,21.38111776,115.18,115.13,21.52327933]
[1743950871347,0.03,115.2,115.15,0.14216157]
[1743950871652,21.38111776,115.19,115.15,5.02356157]
[1743950871840,0.03,115.2,115.15,26.40467933]
[1743950872153,21.38111776,115.18,115.16,3.19829527]
[1743950872352,21.38111776,115.17,115.16,3.19829527]
[1743950872929,21.38111776,115.17,115.14,6.0795]
[1743950873341,13.68645943,115.17,115.14,6.0795]
[1743950875332,18.67964886,115.2,115.14,21.2783]
[1743950875531,13.68645943,115.18,115.14,21.2783]
[1743950875739,0.03,115.2,115.15,0.14216157]
[1743950875941,13.71645943,115.2,115.16,3.20274635]
[1743950876145,0.03,115.2,115.16,3.20274635]
[1743950876358,13.71645943,115.2,115.16,3.20274635]
[1743950876749,13.68645943,115.19,115.17,3.20274635]
[1743950877248,13.68645943,115.19,115.16,3.20274635]
[1743950877450,0.03,115.2,115.17,6.0779]
[1743950877653,13.71645943,115.2,115.17,6.0779]
[1743950878049,13.68645943,115.18,115.17,6.0779]
[1743950878749,13.68645943,115.18,115.17,9.28244496]
[1743950878949,13.68645943,115.19,115.17,9.28244496]
[1743950879144,13.68645943,115.18,115.17,9.28244496]
[1743950879564,13.68645943,115.19,115.15,15.1966]
[1743950879778,13.71645943,115.2,115.15,28.88305943]
[1743950879940,13.71645943,115.2,115.16,0.14216157]
[1743950880350,13.68645943,115.19,115.16,0.14216157]
[1743950880766,13.68645943,115.18,115.16,0.14216157]
[1743950881164,13.68645943,115.17,115.14,6.0795]
[1743950881573,13.68645943,115.17,115.13,8.58216157]
[1743950881574,13.68645943,115.17,115.16,6.0784]
[1743950882266,13.68645943,115.17,115.16,9.28700848]
[1743950882471,0.03,115.2,115.17,17.48916157]
[1743950882651,0.03,115.2,115.17,39.615621]
[1743950882853,0.03,115.2,115.17,25.92916157]
[1743950883072,0.03,115.2,115.18,3.20860848]
[1743950883659,0.03,115.2,115.19,9.28550848]
[1743950885279,0.03,115.2,115.19,3.20860848]
[1743950885504,21.39830351,115.2,115.19,3.20860848]
[1743950886663,21.39830351,115.2,115.19,9.28550848]
[1743950888386,0.03,115.2,115.19,9.28550848]
[1743950888878,21.39830351,115.2,115.19,9.28550848]
[1743950889169,21.39830351,115.2,115.19,3.20860848]
[1743950889559,0.03,115.2,115.19,9.28550848]
[1743950889870,21.39830351,115.2,115.19,3.20860848]
[1743950890073,21.39830351,115.2,115.17,8.44]
[1743950890074,21.39830351,115.2,115.18,3.20860848]
[1743950890262,0.03,115.2,115.18,9.28590848]
[1743950890451,21.39830351,115.2,115.18,3.20860848]
[1743950890860,21.36830351,115.19,115.18,3.20860848]
[1743950892279,21.39830351,115.2,115.18,9.28590848]
[1743950892477,0.03,115.2,115.18,9.28590848]
[1743950892665,21.39830351,115.2,115.18,9.28590848]
[1743950893061,21.39830351,115.2,115.19,3.20860848]
[1743950896482,46.40857551,115.2,115.19,3.20860848]
[1743950896777,18.64964886,115.19,115.15,6.1417]
[1743950896963,21.36830351,115.17,115.15,6.1417]
[1743950897367,18.64964886,115.19,115.16,3.22650403]
[1743950897561,0.03,115.2,115.16,9.30480403]
[1743950897776,21.36830351,115.19,115.16,9.30480403]
[1743950898268,21.36830351,115.19,115.17,3.22650403]
[1743950898863,21.36830351,115.19,115.18,3.22650403]
[1743950899460,21.39830351,115.2,115.18,3.22650403]
[1743950900059,21.39830351,115.2,115.17,6.0775]
[1743950900875,21.36830351,115.19,115.17,6.0775]
[1743950901068,21.39830351,115.2,115.17,6.0775]
[1743950901774,21.39830351,115.2,115.18,3.22953397]
[1743950902467,0.03,115.2,115.18,3.22953397]
[1743950902779,21.39830351,115.2,115.15,42.84996508]
[1743950902983,0.03,115.2,115.15,42.84996508]
[1743950903171,0.03,115.2,115.16,3.22804551]
[1743950903371,21.39830351,115.2,115.16,3.22804551]
[1743950903886,21.39830351,115.2,115.17,9.30574551]
[1743950904582,21.36830351,115.19,115.18,3.22804551]
[1743950905090,0.03,115.2,115.18,3.22804551]
[1743950905380,13.68011326,115.19,115.18,3.22804551]
[1743950905680,13.68011326,115.19,115.17,6.0777]
[1743950905987,13.68011326,115.19,115.16,6.0782]
[1743950906566,13.71011326,115.2,115.17,3.2298562]
[1743950907286,13.71011326,115.2,115.18,3.2298562]
[1743950907484,0.03,115.2,115.18,3.2298562]
[1743950907896,0.03,115.2,115.19,6.0769]
[1743950908187,0.03,115.2,115.19,9.3067562]
[1743950918387,0.03,115.2,115.19,22.98686946]
[1743950918989,0.03,115.2,115.19,9.3067562]
[1743950922467,0.03,115.2,115.19,22.98686946]
[1743950923568,18.0925,115.29,115.2,0.14216157]
[1743950923781,13.68011326,115.27,115.22,13.68011326]
[1743950923976,4.6647,115.3,115.23,13.68011326]
[1743950924184,4.6647,115.3,115.24,13.68011326]
[1743950924386,13.68011326,115.28,115.25,6.0737]
[1743950925313,13.68011326,115.3,115.26,3.19735849]
[1743950926197,13.68011326,115.3,115.27,3.19735849]
[1743950926408,13.68011326,115.3,115.28,6.0721]
[1743950927399,13.68011326,115.3,115.26,6.0732]
[1743950928307,13.68011326,115.28,115.25,21.258]
[1743950928512,13.68011326,115.26,115.24,4.9966]
[1743950928685,13.68011326,115.26,115.24,6.0742]
[1743950930116,13.68011326,115.25,115.23,14.5146]
[1743950931210,13.68011326,115.24,115.23,8.44]
[1743950931512,13.68011326,115.24,115.22,6.0751]
[1743950931709,13.68011326,115.24,115.2,6.0763]
[1743950932101,13.68011326,115.24,115.2,6.1393]
[1743950932500,13.68011326,115.24,115.21,3.18135889]
[1743950932718,13.68011326,115.24,115.22,6.0753]
[1743950933917,13.68011326,115.25,115.22,6.0753]
[1743950934305,6.0728,115.27,115.2,13.74311326]
[1743950934306,13.68011326,115.24,115.21,6.0758]
[1743950934713,13.68011326,115.24,115.22,3.17987251]
[1743950935127,13.68011326,115.23,115.22,3.17987251]
[1743950935530,13.68011326,115.24,115.22,3.17987251]
[1743950936432,13.68011326,115.24,115.22,9.25497251]
[1743950936628,13.68011326,115.24,115.22,6.0751]
[1743950937031,18.7231,115.27,115.22,6.0751]
[1743950937032,13.68011326,115.25,115.22,6.0751]
[1743950938729,13.68011326,115.26,115.21,35.08767483]
[1743950938909,13.68011326,115.25,115.21,35.08767483]
[1743950939113,13.68011326,115.25,115.21,21.40756157]
[1743950939313,13.68011326,115.24,115.21,6.0758]
[1743950939515,13.68011326,115.24,115.22,3.18052505]
[1743950940150,13.68011326,115.25,115.22,3.18052505]
[1743950940834,13.68011326,115.25,115.21,6.0758]
[1743950941328,6.0728,115.27,115.21,6.0758]
[1743950941329,13.68011326,115.26,115.21,19.75591326]
[1743950941536,13.68011326,115.26,115.21,34.94551326]
[1743950941831,0.03,115.28,115.21,34.94551326]
[1743950942018,13.68011326,115.26,115.21,34.94551326]
[1743950942921,13.68011326,115.26,115.22,3.18039549]
[1743950943806,13.68011326,115.23,115.22,3.18039549]
[1743950944027,13.68011326,115.23,115.2,6.1391]
[1743950944229,13.68011326,115.21,115.2,0.063]
[1743950945230,4.6746,115.25,115.2,0.063]
[1743950945539,13.68011326,115.22,115.2,0.063]
[1743950947141,13.68011326,115.21,115.2,0.063]
[1743950947438,6.0743,115.24,115.2,3.21747693]
[1743950947439,13.68011326,115.22,115.2,3.21747693]
[1743950948319,13.68011326,115.22,115.2,0.063]
[1743950948636,13.68011326,115.23,115.2,0.063]
[1743950948931,13.68011326,115.25,115.2,13.88527483]
[1743950949139,13.68011326,115.25,115.21,3.15392666]
[1743950950415,13.68011326,115.25,115.22,3.15392666]
[1743950950615,13.68011326,115.25,115.23,6.0748]
[1743950951250,13.68011326,115.24,115.23,6.0748]
[1743950951452,13.68011326,115.24,115.21,6.0758]
[1743950952544,13.68011326,115.23,115.2,6.1393]
[1743950952862,13.68011326,115.23,115.2,0.063]
[1743950953156,13.68011326,115.23,115.21,3.15928298]
[1743950953362,6.0738,115.25,115.21,3.15928298]
[1743950953568,13.68011326,115.23,115.21,3.15928298]
[1743950954134,13.68011326,115.23,115.22,3.15928298]
[1743950955061,13.68011326,115.23,115.21,9.23508298]
[1743950956131,13.68011326,115.23,115.22,3.15928298]
[1743950956854,13.68011326,115.23,115.21,9.23508298]
[1743950957038,13.68011326,115.22,115.21,9.23508298]
[1743950957542,13.68011326,115.23,115.21,9.23508298]
[1743950958264,13.68011326,115.23,115.22,3.15928298]
[1743950961970,13.68011326,115.23,115.21,9.23508298]
[1743950962157,13.68011326,115.23,115.21,3.15928298]
[1743950962473,13.68011326,115.23,115.21,9.23508298]
[1743950962770,13.68011326,115.23,115.22,3.15928298]
[1743950964676,19.75491326,115.23,115.22,3.15928298]
[1743950965059,19.75491326,115.23,115.2,0.063]
[1743950965262,0.03,115.25,115.2,19.81941326]
[1743950965462,13.71011326,115.25,115.2,28.23941326]
[1743950966168,13.71011326,115.25,115.21,0.14216157]
[1743950966350,0.03,115.25,115.22,6.0753]
[1743950966968,13.71011326,115.25,115.22,6.0753]
[1743950967347,13.71011326,115.25,115.23,3.15712383]
[1743950968274,0.03,115.25,115.22,6.0753]
[1743950968485,13.71011326,115.25,115.22,6.0753]
[1743950969688,13.71011326,115.25,115.23,9.23350344]
[1743950970382,13.71011326,115.25,115.24,3.15890344]
[1743950972084,13.71011326,115.25,115.24,9.23310344]
[1743950972788,13.71011326,115.25,115.24,3.15890344]
[1743950973196,13.71011326,115.25,115.24,9.23310344]
[1743950973489,13.71011326,115.25,115.24,3.15890344]
[1743950976584,19.78381326,115.25,115.24,3.15890344]
[1743950977088,13.71011326,115.25,115.24,3.15890344]
[1743950977263,13.71011326,115.25,115.22,6.0751]
[1743950977579,13.68011326,115.24,115.2,6.1393]
[1743950978672,13.68011326,115.24,115.2,21.3302]
[1743950979180,13.71011326,115.25,115.2,35.01031326]
[1743950980266,0.03,115.25,115.21,13.82227483]
[1743950980462,0.03,115.25,115.22,39.71471326]
[1743950980668,0.03,115.25,115.23,6.0748]
[1743950981853,13.71011326,115.25,115.22,26.0346]
[1743950982058,13.71011326,115.25,115.22,32.1098]
[1743950983262,13.71011326,115.25,115.22,13.362]
[1743950983785,13.71011326,115.25,115.22,19.4372]
[1743950983786,0.03,115.25,115.22,19.4372]
[1743950983964,13.71011326,115.25,115.22,19.4372]
[1743950984884,0.03,115.25,115.22,19.4372]
[1743950985201,13.71011326,115.25,115.22,19.4372]
[1743950986380,0.03,115.25,115.22,19.4372]
[1743950986588,0.03,115.25,115.22,33.11731326]
[1743950987181,0.03,115.25,115.24,13.68011326]
[1743950987694,0.03,115.25,115.23,13.82227483]
[1743950989088,0.03,115.25,115.24,6.0742]
[1743950990783,0.03,115.25,115.24,19.89647483]
[1743950991087,0.0001,115.25,115.24,43.10402369]
[1743950991288,0.03,115.28,115.26,0.28432314]
[1743950991471,0.03,115.28,115.27,22.08011326]
[1743950991670,0.03,115.28,115.27,39.93751326]
[1743950991873,0.03,115.28,115.27,40.07967483]
[1743950992083,13.68011326,115.33,115.28,0.14216157]
[1743950992288,6.0976,115.37,115.29,13.68011326]
[1743950992484,13.68011326,115.34,115.29,13.68011326]
[1743950992891,13.68011326,115.34,115.3,6.0711]
[1743950993394,13.68011326,115.33,115.3,6.0711]
[1743950993770,6.0681,115.36,115.3,6.0711]
[1743950994088,0.03,115.37,115.31,8.54216157]
[1743950994294,0.03,115.37,115.33,0.14216157]
[1743950994483,13.68011326,115.36,115.33,0.14216157]
[1743950994795,0.03,115.37,115.32,4.5579]
[1743950994796,13.68011326,115.35,115.32,4.5579]
[1743950995093,13.68011326,115.34,115.31,14.4704]
[1743950996071,0.03,115.37,115.31,14.4704]
[1743950996287,13.71011326,115.34,115.31,8.4]
[1743950996790,13.71011326,115.34,115.31,14.4705]
[1743950997793,0.03,115.34,115.32,0.14216157]
[1743950998279,0.03,115.34,115.32,13.82227483]
[1743950998874,0.03,115.34,115.33,19.89177483]
[1743950999299,0.03,115.34,115.33,27.5157508]
[1743951001992,0.03,115.34,115.33,6.21166157]
[1743951003099,0.03,115.34,115.33,6.0695]
[1743951003405,0.03,115.34,115.33,14.4695]
[1743951004079,0.03,115.34,115.33,65.9157508]
[1743951004490,0.0001,115.34,115.33,65.9157508]
[1743951004995,0.0001,115.34,115.33,44.61166157]
[1743951005208,0.0001,115.34,115.33,38.4]
[1743951005404,21.30418923,115.34,115.33,38.4]
[1743951005604,21.30418923,115.34,115.33,30.0]
[1743951006696,0.0001,115.34,115.33,30.0]
[1743951007495,0.0001,115.34,115.31,14.4703]
[1743951007687,21.30418923,115.34,115.32,30.0]
[1743951008295,0.0001,115.34,115.31,6.0705]
[1743951009792,0.0001,115.34,115.29,21.64792511]
[1743951009793,21.30408923,115.33,115.29,23.4483]
[1743951009992,21.30408923,115.33,115.3,30.0]
[1743951010603,0.0001,115.34,115.3,51.30408923]
[1743951010788,21.30418923,115.34,115.3,51.30408923]
[1743951011182,21.30418923,115.34,115.3,36.0706]
[1743951011804,21.30408923,115.33,115.3,36.0706]
[1743951012187,21.30418923,115.34,115.3,36.0706]
[1743951013301,21.30418923,115.34,115.3,6.0706]
[1743951016810,0.0001,115.34,115.3,6.0706]
[1743951016996,21.30408923,115.33,115.3,6.0706]
[1743951017508,21.30408923,115.32,115.29,19.2061]
[1743951017715,6.0691,115.34,115.28,14.4719]
[1743951018007,21.30408923,115.31,115.29,30.0]
[1743951018310,21.30408923,115.3,115.29,30.0]
[1743951018606,21.30408923,115.3,115.24,6.0742]
[1743951018798,21.30408923,115.26,115.25,30.0]
[1743951019512,18.0885,115.31,115.25,30.0]
[1743951019811,21.30408923,115.28,115.25,36.0737]
[1743951020195,21.30408923,115.27,115.25,6.0737]
[1743951020786,21.30408923,115.28,115.24,6.0742]
[1743951021490,21.30408923,115.27,115.25,0.063]
[1743951021692,21.30408923,115.28,115.25,0.063]
[1743951023507,21.30408923,115.27,115.25,0.063]
[1743951025519,13.65975036,115.27,115.25,0.063]
[1743951026004,13.65975036,115.28,115.25,0.063]
[1743951026541,6.0711,115.3,115.25,0.063]
[1743951026542,13.65975036,115.3,115.26,13.65975036]
[1743951027227,13.65975036,115.3,115.25,13.72275036]
[1743951027395,13.65975036,115.3,115.25,21.3960991]
[1743951027396,21.3330991,115.3,115.25,21.3960991]
[1743951027928,21.3330991,115.3,115.26,6.0732]
[1743951028227,29.51984886,115.33,115.26,6.0732]
[1743951028424,21.3330991,115.3,115.26,6.0732]